fUST/lending_fUST_20240402
["ID","MTS","AMOUNT","RATE_DAILY","PERIOD"]
[321228407,1711996242942,-500.0,0.00055616,120]
[321228408,1711996242952,-500.0,0.00055616,120]
[321228409,1711996242961,-500.0,0.00055616,120]
[321228411,1711996242970,-842.92,0.00055616,120]
[321228412,1711996242979,-6573.58,0.00055616,120]
[321228414,1711996242989,-3014.01,0.00055616,120]
[321228416,1711996242999,-500.0,0.00055616,120]
[321228418,1711996243010,-817.53,0.00055616,120]
[321228421,1711996243020,-558.48,0.00055616,120]
[321228422,1711996243029,-500.0,0.00055616,120]
[321228424,1711996243041,-500.0,0.00055616,120]
[321228426,1711996243050,-500.0,0.00055616,120]
[321228428,1711996243060,-603.95,0.00055616,120]
[321228430,1711996243070,-500.0,0.00055616,120]
[321228432,1711996243080,-9223.15,0.00055616,90]
[321228434,1711996243089,-500.0,0.00055616,120]
[321228435,1711996243101,-2122.52,0.00055616,21]
[321228436,1711996243110,-500.0,0.00055616,60]
[321228437,1711996243121,-500.0,0.00055616,120]
[321228438,1711996243131,-559.68,0.00055616,120]
[321228440,1711996243141,-500.0,0.00055616,120]
[321228441,1711996243150,-1953.25,0.00055616,120]
[321228442,1711996243159,-2796.47,0.00055616,120]
[321228443,1711996243168,-500.0,0.00055616,120]
[321228444,1711996243177,-500.0,0.00055616,120]
[321228445,1711996243187,-2070.72,0.00055616,120]
[321228446,1711996243196,-500.0,0.00055616,2]
[321228447,1711996243205,-500.0,0.00055616,120]
[321228448,1711996243214,-500.0,0.00055616,120]
[321228449,1711996243223,-151.0,0.00055616,120]
[321228450,1711996243233,-671.87,0.00055616,120]
[321228451,1711996243242,-500.0,0.00055616,120]
[321228452,1711996243251,-500.0,0.00055616,120]
[321228453,1711996243260,-1118.37,0.00055616,120]
[321228454,1711996243270,-793.46,0.00055616,120]
[321228455,1711996243279,-1000.0,0.00055616,7]
[321228457,1711996243288,-720.85,0.00055616,120]
[321228458,1711996243297,-715.87,0.00055616,120]
[321228459,1711996243306,-500.0,0.00055616,120]
[321228460,1711996243315,-153.0,0.00055616,60]
[321228461,1711996243325,-153.0,0.00055616,60]
[321228462,1711996243334,-153.0,0.00055625,60]
[321228463,1711996243344,-472.0,0.000558,48]
[321228464,1711996243353,-500.0,0.0005589,120]
[321228465,1711996243362,-500.0,0.0005589,120]
[321228466,1711996243371,-500.0,0.0005589,120]
[321228467,1711996243380,-679.11,0.0005589,120]
[321228468,1711996243389,-481.35409739,0.0005589,120]
[321228469,1711996243399,-500.0,0.0005589,120]
[321228470,1711996243408,-573.66,0.0005589,120]
[321228472,1711996243417,-500.0,0.0005589,120]
[321228474,1711996243427,-500.0,0.0005589,120]
[321228475,1711996243436,-500.0,0.0005589,120]
[321228476,1711996243445,-612.64,0.0005589,120]
[321228477,1711996243454,-500.0,0.0005589,120]
[321228478,1711996243465,-500.0,0.0005589,120]
[321228480,1711996243474,-500.0,0.0005589,120]
[321228481,1711996243483,-417.89557895,0.0005589,120]
[321228482,1711996243492,-842.92,0.0005589,120]
[321228483,1711996243501,-6573.58,0.0005589,120]
[321228484,1711996243510,-3014.01,0.0005589,120]
[321228485,1711996243519,-151.0,0.0005589,120]
[321228486,1711996243528,-500.0,0.0005589,120]
[321228487,1711996243538,-817.53,0.0005589,120]
[321228488,1711996243548,-558.48,0.0005589,120]
[321228489,1711996243557,-500.0,0.0005589,120]
[321228490,1711996243567,-500.0,0.0005589,120]
[321228491,1711996243577,-500.0,0.0005589,120]
[321228492,1711996243586,-603.95,0.0005589,120]
[321228493,1711996243595,-266.52292031,0.0005589,120]
[321228494,1711996243604,-8285.80412402,0.0005589,90]
[321228495,1711996243622,-489.43,0.0005589,90]
[321228497,1711996243852,-447.91587598,0.0005589,90]
[321228498,1711996243861,-243.98561303,0.0005589,120]
[321228499,1711996243871,-2122.52,0.0005589,21]
[321228500,1711996243879,-500.0,0.0005589,60]
[321228501,1711996243889,-500.0,0.0005589,120]
[321228502,1711996243899,-559.68,0.0005589,120]
[321228503,1711996243908,-80.29905195,0.0005589,120]
[321228527,1711996246618,-1086.13583216,0.00055067,4]
[321228584,1711997439507,-154.90705577,0.00039996,2]
[321228585,1711997439517,-154.90705577,0.00039997,4]
[321228586,1711997439527,-753.43760292,0.00039998,4]
[321228587,1711997439536,-170.432018,0.0004,2]
[321228588,1711997439546,-166.666666,0.00048488,2]
[321228589,1711997439555,-166.666666,0.0004981,2]
[321228590,1711997439564,-1085.90219555,0.0004987,4]
[321228591,1711997439576,-573.18,0.0005,30]
[321228592,1711997439585,-166.666666,0.00051132,2]
[321228593,1711997439594,-308.026383,0.00051165,2]
[321228594,1711997439604,-1264.94704254,0.00051999,120]
[321228595,1711997439613,-956.05947146,0.00052434,4]
[321228596,1711997439623,-700.0,0.00052435,10]
[321228597,1711997439632,-14512.87972522,0.00052436,2]
[321228598,1711997439644,-10387.12027478,0.00052436,2]
[321228599,1711997439653,-166.666666,0.00052454,2]
[321228600,1711997439665,-176.92545993,0.00052599,14]
[321228601,1711997439675,-326.95329628,0.00052699,4]
[321228602,1711997439684,-372.44761954,0.00052699,4]
[321228603,1711997439693,-632.30397911,0.00052706,2]
[321228604,1711997439703,-632.30397909,0.00053258,2]
[321228605,1711997439712,-228.8743408,0.00053516,4]
[321228606,1711997439721,-166.666666,0.00053776,2]
[321228607,1711997439731,-632.30397909,0.00053809,2]
[321228608,1711997439740,-202.3118837,0.00053978,2]
[321228609,1711997439750,-202.3118837,0.00053978,2]
[321228610,1711997439759,-202.3118837,0.00053978,2]
[321228611,1711997439769,-201.3689568,0.00053978,2]
[321228612,1711997439778,-837.0,0.00054,120]
[321228613,1711997439787,-632.30397909,0.00054361,2]
[321228614,1711997439796,-239752.8410941,0.0005479,2]
[321228615,1711997439806,-2180.82905316,0.00054792,4]
[321228616,1711997439815,-2276.46634613,0.00054792,4]
[321228617,1711997439825,-648.54953095,0.00054792,4]
[321228618,1711997439834,-1570.06739412,0.00054792,4]
[321228619,1711997439843,-716.76277586,0.00054792,4]
[321228620,1711997439852,-167.1046727,0.00054793,4]
[321228621,1711997439861,-565.92,0.00054794,120]
[321228622,1711997439871,-500.0,0.00054794,120]
[321228623,1711997439880,-500.0,0.00054794,120]
[321228624,1711997439889,-225.56517564,0.00054794,120]
[321228625,1711997439899,-500.0,0.00054794,120]
[321228626,1711997439908,-352.29249029,0.00054794,120]
[321228627,1711997439919,-500.0,0.00054794,120]
[321228628,1711997439928,-500.0,0.00054794,120]
[321228629,1711997439938,-500.0,0.00054794,120]
[321228630,1711997439947,-500.0,0.00054794,120]
[321228631,1711997439957,-500.0,0.00054794,2]
[321228632,1711997439966,-500.0,0.00054794,120]
[321228633,1711997439975,-561.58,0.00054794,120]
[321228634,1711997439984,-500.0,0.00054794,120]
[321228635,1711997439994,-500.0,0.00054794,120]
[321228636,1711997440003,-737.56,0.00054794,120]
[321228637,1711997440012,-500.0,0.00054794,120]
[321228638,1711997440021,-656.22,0.00054794,120]
[321228639,1711997440030,-2637.26,0.00054794,120]
[321228640,1711997440039,-500.0,0.00054794,120]
[321228641,1711997440049,-749.4,0.00054794,120]
[321228642,1711997440058,-511.94,0.00054794,120]
[321228643,1711997440068,-528.46,0.00054794,120]
[321228644,1711997440078,-500.0,0.00054794,120]
[321228645,1711997440089,-500.0,0.00054794,120]
[321228646,1711997440098,-500.0,0.00054794,120]
[321228647,1711997440109,-500.0,0.00054794,120]
[321228648,1711997440119,-37.00768575,0.00054794,90]
[321228672,1711997440767,-506.12850801,0.00054794,90]
[321228675,1711997440780,-687.14,0.00054794,90]
[321228716,1711997444544,-155.40546901,0.00054793,4]
[321228717,1711997444554,-6800.92380624,0.00054794,90]
[321228718,1711997444563,-1768.76,0.00054794,21]
[321228719,1711997444572,-500.0,0.00054794,60]
[321228720,1711997444581,-253.88541244,0.00054794,120]
[321228815,1711997628091,421.92832336,0.0002,2]
[321228822,1711998358892,456.97499252,0.000189,2]
[321228823,1711998359158,456.97499252,0.000239,2]
[321228826,1711998471343,19095.36227754,0.000239,2]
[321228833,1711998497272,9054.12106324,0.000239,2]
[321228834,1711998497309,10041.2412143,0.000239,2]
[321228835,1711998517273,3443.97558119,0.000239,2]
[321229138,1711998637936,-154.8915759,0.00039898,4]
[321229139,1711998637946,-1163.9035298,0.00039899,4]
[321229140,1711998637955,-188.67573089,0.000399,120]
[321229141,1711998637964,-2584.711816,0.00040038,120]
[321229142,1711998637973,-1411.0287646,0.0004013,2]
[321229143,1711998637982,-275.342036,0.00040358,2]
[321229144,1711998637991,-326.0,0.00040886,3]
[321229145,1711998638000,-550.0,0.00040886,3]
[321229146,1711998638010,-550.0,0.00040886,5]
[321229147,1711998638019,-427.0,0.00040887,2]
[321229148,1711998638029,-3502.44190212,0.00040887,2]
[321229149,1711998638041,-21397.55809788,0.00040887,2]
[321229150,1711998638051,-176.92545993,0.00040887,10]
[321229151,1711998638060,-663.06008905,0.00040987,2]
[321229152,1711998638069,-168.468059,0.00041087,2]
[321229153,1711998638078,-166.666666,0.00041096,2]
[321229154,1711998638087,-663.06008901,0.00041283,2]
[321229155,1711998638096,-663.06008901,0.00041579,2]
[321229156,1711998638105,-663.06008901,0.00041874,2]
[321229157,1711998638115,-166.666666,0.00042058,2]
[321229158,1711998638124,-663.06008901,0.0004217,2]
[321229159,1711998638133,-364.74019634,0.0004217,2]
[321229160,1711998638143,-160.0,0.00042269,30]
[321229161,1711998638153,-765.37023256,0.00042269,4]
[321229162,1711998638163,-513767.9718549,0.0004227,60]
[321229178,1711998640191,-2000.0,0.0004227,60]
[321229241,1711998645769,-7271.92143066,0.0004227,60]
[321229242,1711998645782,-15768.36864936,0.0004227,60]
[321229243,1711998645791,-3518.76041761,0.0004227,2]
[321229244,1711998645801,-6337.54245695,0.0004227,2]
[321229245,1711998645811,-1729.61484199,0.0004227,2]
[321229246,1711998645821,-36644.68559817,0.0004227,60]
[321229247,1711998645831,-13451.999999,0.0004227,2]
[321229248,1711998645841,-13854.78402661,0.0004227,32]
[321229249,1711998645851,-1667.51329834,0.0004227,31]
[321229250,1711998645862,-2868.01188023,0.0004227,31]
[321229252,1711998645996,-6547.41260242,0.0004227,31]
[321229253,1711998646006,-372.44761954,0.00042358,4]
[321229254,1711998646016,-167.1046727,0.00042358,4]
[321229255,1711998646025,-326.95329628,0.00042358,4]
[321229256,1711998646034,-8539.26366607,0.00042358,4]
[321229257,1711998646044,-716.76277586,0.00042358,4]
[321229258,1711998646054,-1570.06739412,0.00042358,4]
[321229259,1711998646064,-155.56089784,0.00042358,4]
[321229260,1711998646074,-3037.57152052,0.00042358,120]
[321229261,1711998646083,-2276.46634613,0.00042358,4]
[321229262,1711998646093,-429.6206382,0.00042358,4]
[321229263,1711998646103,-155.00465114,0.00042358,4]
[321229264,1711998646113,-648.54953095,0.00042358,4]
[321229265,1711998646123,-641.25261039,0.00042358,4]
[321229266,1711998646133,-155.69105699,0.00042358,4]
[321229267,1711998646143,-155.0,0.00042358,4]
[321229268,1711998646152,-2180.82905316,0.00042358,4]
[321229269,1711998646162,-1627.83298542,0.000424,120]
[321229270,1711998646173,-166.666666,0.00043019,2]
[321229271,1711998646182,-160.0,0.00043332,30]
[321229272,1711998646191,-38880.48954547,0.00043333,2]
[321229277,1711998900796,-1938.533862,0.00041338,120]
[321229287,1711999563926,151.862,0.0003662,50]
[321229297,1711999663329,-1453.900396,0.00041064,120]
[321229553,1711999838228,-1482.95,0.00039237,4]
[321229554,1711999838238,-244.19564975,0.00039238,2]
[321229555,1711999838247,-166.745222,0.0004,2]
[321229556,1711999838257,-170.432018,0.0004,2]
[321229557,1711999838266,-166.666666,0.00041096,2]
[321229558,1711999838276,-550.0,0.00041373,3]
[321229559,1711999838285,-550.0,0.00041373,5]
[321229560,1711999838294,-24900.0,0.00041374,2]
[321229561,1711999838303,-176.92545993,0.00041812,10]
[321229562,1711999838313,-663.06008905,0.00041912,2]
[321229563,1711999838322,-166.666666,0.00042058,2]
[321229564,1711999838331,-304.66176136,0.00042268,4]
[321229565,1711999838340,-319.36573979,0.00042269,4]
[321229566,1711999838349,-155.89703315,0.00042269,4]
[321229567,1711999838358,-155.77597829,0.00042269,4]
[321229568,1711999838367,-1049.09939749,0.00042269,4]
[321229569,1711999838376,-205.38590199,0.00042269,4]
[321229570,1711999838387,-166.666666,0.00043019,2]
[321229571,1711999838397,-68759.5581717,0.00043333,2]
[321229572,1711999838406,-663.06008901,0.00043859,2]
[321229573,1711999838415,-166.666666,0.00043981,2]
[321229574,1711999838424,-770.0,0.00044068,3]
[321229575,1711999838434,-770.0,0.00044068,5]
[321229576,1711999838443,-244.19564975,0.00044238,2]
[321229577,1711999838452,-166.666666,0.00044942,2]
[321229578,1711999838461,-8676.15065072,0.00045,120]
[321229579,1711999838471,-663.06008901,0.00045806,2]
[321229580,1711999838480,-1004.56025567,0.00045819,7]
[321229581,1711999838489,-166.666666,0.00045904,2]
[321229582,1711999838499,-1077.0,0.00046939,3]
[321229583,1711999838508,-276.0,0.00046939,5]
[321229584,1711999838517,-663.06008901,0.00047753,2]
[321229585,1711999838526,-1453.900396,0.00047909,120]
[321229586,1711999838536,-3945.7303599,0.00049,30]
[321229587,1711999838547,-1123.17726517,0.00049,120]
[321229588,1711999838556,-244.19564975,0.00049238,2]
[321229589,1711999838565,-28577.3221609,0.00049315,120]
[321229590,1711999838573,-663.06008901,0.000497,2]
[321229591,1711999838582,-3442.29341335,0.000498,2]
[321229592,1711999838591,-1085.90219555,0.0004987,4]
[321229593,1711999838600,-1509.0,0.00049997,10]
[321229594,1711999838609,-550.75015793,0.0005,120]
[321229595,1711999838619,-9417.86006462,0.0005,120]
[321229596,1711999838628,-8499.84054553,0.0005,120]
[321229597,1711999838637,-12922.0,0.0005,120]
[321229598,1711999838646,-1500.0,0.00051,2]
[321229599,1711999838655,-153.0,0.00053234,2]
[321229600,1711999838664,-153.0,0.00053234,2]
[321229601,1711999838673,-2112.0,0.00053253,10]
[321229602,1711999838682,-202.3118837,0.00053425,2]
[321229603,1711999838691,-153.0,0.00053434,2]
[321229604,1711999838700,-153.0,0.00053434,2]
[321229605,1711999838709,-202.3118837,0.00053699,2]
[321229606,1711999838718,-202.3118837,0.00053699,2]
[321229607,1711999838728,-202.3118837,0.00053699,2]
[321229608,1711999838736,-202.3118837,0.00053699,2]
[321229609,1711999838746,-890.0,0.00054,120]
[321229610,1711999838755,-1000.0,0.000545,30]
[321229611,1711999838765,-2385.97896017,0.00054594,120]
[321229612,1711999838774,-150.0,0.000547,95]
[321229613,1711999838783,-12882.09597915,0.00054739,61]
[321229614,1711999838793,-13258.98620584,0.00054739,15]
[321229615,1711999838802,-1453.900396,0.00054753,120]
[321229616,1711999838811,-2180.0,0.0005479,30]
[321229617,1711999838820,-716.22716036,0.00054792,4]
[321229618,1711999838830,-208.73698226,0.00054792,2]
[321229619,1711999838839,-493.21604082,0.00054792,2]
[321229620,1711999838848,-1834.63752118,0.00054792,4]
[321229621,1711999838858,-3023.04829628,0.00054792,4]
[321229622,1711999838867,-1539.79390352,0.00054792,4]
[321229623,1711999838876,-160.0,0.00054793,60]
[321229624,1711999838886,-160.0,0.00054793,60]
[321229625,1711999838896,-535.7627076,0.00054793,4]
[321229626,1711999838905,-397.02972107,0.00054794,120]
[321229627,1711999838914,-11553.82820128,0.00054794,120]
[321229628,1711999838923,-500.51724593,0.00054794,120]
[321229629,1711999838932,-500.0,0.00054794,120]
[321229630,1711999838941,-502.96027814,0.00054794,120]
[321229631,1711999838951,-500.0,0.00054794,120]
[321229632,1711999838960,-500.0,0.00054794,120]
[321229633,1711999838969,-500.0,0.00054794,120]
[321229634,1711999838978,-500.0,0.00054794,120]
[321229635,1711999838988,-543.78317584,0.00054794,120]
[321229636,1711999838997,-506.33259802,0.00054794,120]
[321229637,1711999839008,-500.0,0.00054794,120]
[321229638,1711999839018,-185.12002188,0.00054794,120]
[321229639,1711999839028,-500.0,0.00054794,120]
[321229640,1711999839037,-500.0,0.00054794,120]
[321229641,1711999839047,-500.0,0.00054794,120]
[321229642,1711999839058,-463.485095,0.00054794,120]
[321229643,1711999839067,-500.0,0.00054794,120]
[321229644,1711999839077,-500.0,0.00054794,120]
[321229645,1711999839089,-500.0,0.00054794,120]
[321229646,1711999839099,-500.0,0.00054794,120]
[321229647,1711999839108,-500.0,0.00054794,120]
[321229648,1711999839117,-500.0,0.00054794,120]
[321229649,1711999839126,-500.0,0.00054794,120]
[321229650,1711999839136,-500.0,0.00054794,120]
[321229651,1711999839145,-500.0,0.00054794,120]
[321229652,1711999839154,-151.0,0.00054794,120]
[321229653,1711999839163,-500.0,0.00054794,120]
[321229654,1711999839172,-500.0,0.00054794,120]
[321229655,1711999839182,-500.0,0.00054794,120]
[321229656,1711999839191,-500.0,0.00054794,120]
[321229657,1711999839200,-500.0,0.00054794,120]
[321229658,1711999839209,-679.11,0.00054794,120]
[321229659,1711999839218,-522.23050104,0.00054794,120]
[321229660,1711999839228,-643.45941654,0.00054794,120]
[321229661,1711999839237,-500.0,0.00054794,120]
[321229662,1711999839247,-500.0,0.00054794,120]
[321229663,1711999839258,-608.84,0.00054794,120]
[321229664,1711999839267,-500.0,0.00054794,120]
[321229665,1711999839277,-500.0,0.00054794,120]
[321229666,1711999839286,-500.0,0.00054794,120]
[321229667,1711999839296,-500.0,0.00054794,120]
[321229668,1711999839305,-503.21001421,0.00054794,120]
[321229669,1711999839314,-505.12118078,0.00054794,120]
[321229670,1711999839324,-500.0,0.00054794,120]
[321229671,1711999839333,-335.22649085,0.00054794,120]
[321229672,1711999839343,-500.0,0.00054794,120]
[321229673,1711999839353,-500.0,0.00054794,120]
[321229674,1711999839441,-505.64132494,0.00054794,120]
[321229675,1711999839450,-500.0,0.00054794,120]
[321229676,1711999839459,-508.34713992,0.00054794,120]
[321229677,1711999839468,-506.60491626,0.00054794,120]
[321229678,1711999839477,-500.0,0.00054794,120]
[321229679,1711999839486,-500.0,0.00054794,120]
[321229680,1711999839495,-500.0,0.00054794,120]
[321229681,1711999839506,-504.1058148,0.00054794,120]
[321229682,1711999839515,-500.0,0.00054794,120]
[321229683,1711999839524,-500.0,0.00054794,120]
[321229684,1711999839534,-500.0,0.00054794,120]
[321229685,1711999839543,-500.0,0.00054794,120]
[321229687,1711999839553,-500.0,0.00054794,120]
[321229688,1711999839562,-502.37836672,0.00054794,120]
[321229689,1711999839572,-500.0,0.00054794,120]
[321229690,1711999839581,-500.0,0.00054794,120]
[321229691,1711999839590,-500.0,0.00054794,120]
[321229692,1711999839599,-500.0,0.00054794,120]
[321229693,1711999839610,-500.0,0.00054794,120]
[321229694,1711999839620,-500.0,0.00054794,120]
[321229696,1711999839630,-503.47601323,0.00054794,120]
[321229697,1711999839639,-500.0,0.00054794,120]
[321229698,1711999839649,-500.0,0.00054794,120]
[321229699,1711999839658,-502.33864144,0.00054794,120]
[321229700,1711999839668,-446.69867349,0.00054794,120]
[321229701,1711999839679,-500.0,0.00054794,120]
[321229702,1711999839688,-612.64,0.00054794,120]
[321229703,1711999839697,-500.0,0.00054794,120]
[321229704,1711999839707,-500.0,0.00054794,120]
[321229705,1711999839717,-500.0,0.00054794,120]
[321229706,1711999839727,-500.0,0.00054794,120]
[321229707,1711999839739,-502.66295237,0.00054794,120]
[321229708,1711999839750,-500.0,0.00054794,120]
[321229709,1711999839759,-575.008961,0.00054794,120]
[321229710,1711999839770,-500.0,0.00054794,120]
[321229711,1711999839780,-500.0,0.00054794,120]
[321229712,1711999839790,-500.0,0.00054794,120]
[321229713,1711999839799,-500.0,0.00054794,120]
[321229714,1711999839808,-500.0,0.00054794,20]
[321229715,1711999839817,-486.60929005,0.00054794,120]
[321229716,1711999839826,-500.0,0.00054794,120]
[321229718,1711999839835,-503.23923732,0.00054794,120]
[321229719,1711999839845,-889.7,0.00054794,120]
[321229720,1711999839854,-500.0,0.00054794,120]
[321229721,1711999839863,-500.0,0.00054794,120]
[321229722,1711999839872,-500.0,0.00054794,120]
[321229723,1711999839881,-514.98174395,0.00054794,120]
[321229724,1711999839890,-502.56350408,0.00054794,120]
[321229726,1711999839901,-500.0,0.00054794,120]
[321229728,1711999839911,-637.34456783,0.00054794,120]
[321229730,1711999839920,-500.0,0.00054794,120]
[321229731,1711999839929,-509.37880067,0.00054794,120]
[321229732,1711999839939,-500.0,0.00054794,120]
[321229733,1711999839949,-505.21900292,0.00054794,120]
[321229735,1711999839958,-500.0,0.00054794,120]
[321229737,1711999839968,-500.0,0.00054794,120]
[321229739,1711999839977,-497.40825469,0.00054794,120]
[321229740,1711999839986,-500.0,0.00054794,120]
[321229741,1711999839996,-500.0,0.00054794,120]
[321229742,1711999840008,-715.87,0.00054794,120]
[321229743,1711999840018,-500.6391195,0.00054794,120]
[321229744,1711999840028,-603.95,0.00054794,120]
[321229745,1711999840037,-500.0,0.00054794,120]
[321229746,1711999840047,-507.04785013,0.00054794,120]
[321229747,1711999840058,-3055.68,0.00054794,120]
[321229749,1711999840067,-500.0,0.00054794,120]
[321229750,1711999840076,-500.0,0.00054794,120]
[321229751,1711999840086,-375.7331812,0.00054794,120]
[321229752,1711999840094,-500.0,0.00054794,120]
[321229753,1711999840103,-6726.5,0.00054794,120]
[321229754,1711999840112,-817.53,0.00054794,120]
[321229755,1711999840121,-500.0,0.00054794,120]
[321229757,1711999840130,-500.0,0.00054794,120]
[321229758,1711999840139,-579.31,0.00054794,120]
[321229759,1711999840152,-503.24009158,0.00054794,30]
[321229760,1711999840162,-500.0,0.00054794,120]
[321229761,1711999840171,-500.0,0.00054794,120]
[321229762,1711999840181,-522.80838345,0.00054794,120]
[321229763,1711999840190,-500.0,0.00054794,120]
[321229764,1711999840199,-500.0,0.00054794,120]
[321229765,1711999840209,-501.65021264,0.00054794,120]
[321229766,1711999840218,-439.90220259,0.00054794,120]
[321229767,1711999840227,-500.0,0.00054794,120]
[321229768,1711999840236,-230.24715024,0.00054794,120]
[321229769,1711999840245,-500.0,0.00054794,120]
[321229770,1711999840254,-500.0,0.00054794,120]
[321229771,1711999840263,-500.0,0.00054794,120]
[321229772,1711999840272,-500.0,0.00054794,120]
[321229773,1711999840281,-503.20142314,0.00054794,120]
[321229774,1711999840290,-500.0,0.00054794,120]
[321229776,1711999840298,-500.0,0.00054794,120]
[321229777,1711999840307,-500.0,0.00054794,120]
[321229779,1711999840316,-426.9398392,0.00054794,120]
[321229780,1711999840325,-506.00499671,0.00054794,120]
[321229781,1711999840334,-9035.42,0.00054794,90]
[321229782,1711999840343,-569.7600255,0.00054794,120]
[321229783,1711999840353,-363.71834965,0.00054794,120]
[321229784,1711999840363,-645.25839185,0.00054794,120]
[321229785,1711999840373,-500.8773165,0.00054794,120]
[321229786,1711999840385,-2002.05,0.00054794,21]
[321229787,1711999840398,-506.68067396,0.00054794,120]
[321229788,1711999840408,-500.0,0.00054794,60]
[321229789,1711999840417,-536.36,0.00054794,120]
[321229790,1711999840427,-503.04262834,0.00054794,120]
[321229791,1711999840437,-500.0,0.00054794,2]
[321229792,1711999840448,-500.0,0.00054794,120]
[321229793,1711999840457,-500.0,0.00054794,120]
[321229794,1711999840466,-500.0,0.00054794,120]
[321229795,1711999840475,-165.49760333,0.00054794,120]
[321229796,1711999840484,-1000.0,0.00054794,7]
[321229797,1711999840493,-500.0,0.00054794,120]
[321229798,1711999840502,-500.0,0.00054794,120]
[321229799,1711999840511,-1439.55800001,0.00054794,120]
[321229800,1711999840520,-1994.92,0.00054794,120]
[321229801,1711999840529,-487.3421978,0.00054794,120]
[321229802,1711999840538,-2838.14,0.00054794,120]
[321229803,1711999840547,-500.0,0.00054794,120]
[321229804,1711999840556,-500.0,0.00054794,120]
[321229805,1711999840566,-500.0,0.00054794,120]
[321229806,1711999840574,-500.0,0.00054794,120]
[321229807,1711999840583,-2070.72,0.00054794,120]
[321229808,1711999840592,-719.28,0.00054794,120]
[321229809,1711999840601,-484.26447586,0.00054794,120]
[321229810,1711999840610,-500.0,0.00054794,120]
[321229811,1711999840619,-500.0,0.00054794,120]
[321229812,1711999840628,-500.0,0.00054794,120]
[321229813,1711999840637,-500.0,0.00054794,120]
[321229814,1711999840650,-385.39884179,0.00054794,120]
[321229815,1711999840659,-500.0,0.00054794,120]
[321229816,1711999840667,-500.0,0.00054794,120]
[321229817,1711999840676,-370.85354191,0.00054794,120]
[321229818,1711999840685,-500.0,0.00054794,120]
[321229819,1711999840694,-793.46,0.00054794,120]
[321229820,1711999840703,-500.0,0.00054794,120]
[321229821,1711999840711,-500.0,0.00054794,120]
[321229822,1711999840721,-720.85,0.00054794,120]
[321229823,1711999840730,-1160.04,0.00054794,120]
[321229824,1711999840739,-408.97268156,0.00054795,120]
[321229825,1711999840748,-500.0,0.0005489,120]
[321229826,1711999840758,-500.0,0.0005489,120]
[321229827,1711999840767,-500.0,0.0005489,120]
[321229828,1711999840776,-500.0,0.0005489,120]
[321229829,1711999840785,-500.0,0.0005489,120]
[321229830,1711999840794,-500.0,0.0005489,120]
[321229831,1711999840803,-500.0,0.0005489,120]
[321229832,1711999840812,-500.0,0.0005489,120]
[321229833,1711999840821,-215.41,0.0005489,120]
[321229834,1711999840831,-54646.5263003,0.000549,30]
[321229835,1711999840840,-151.0,0.000549,10]
[321229836,1711999840849,-151.0,0.000549,10]
[321229837,1711999840859,-2746.861831,0.00055,96]
[321229838,1711999840868,-151.0,0.00055,120]
[321229839,1711999840877,-151.0,0.00055,120]
[321229840,1711999840886,-151.0,0.00055,120]
[321229841,1711999840896,-162.72332764,0.00055059,120]
[321229842,1711999840905,-3902.037896,0.00055067,4]
[321229843,1711999840914,-310.76244392,0.00055067,2]
[321229844,1711999840923,-151.0,0.00055067,120]
[321229845,1711999840932,-155.352931,0.00055067,120]
[321229846,1711999840941,-155.352931,0.00055067,120]